bitfinex-derivatives/quotes_BTCF0:USTF0_20250322
["timestamp","ask_amount","ask_price","bid_price","bid_amount"]
[1742686569872,0.36164,83790.0,83789.0,0.3036088]
[1742686570969,0.00084,83790.0,83789.0,0.3036088]
[1742686571457,0.033,83797.0,83796.0,0.1193589]
[1742686571662,0.0338,83797.0,83796.0,0.2400389]
[1742686572064,0.0008,83797.0,83796.0,0.2400389]
[1742686572263,0.0008,83797.0,83796.0,0.3033389]
[1742686572862,0.0008,83797.0,83796.0,0.3043389]
[1742686573769,0.0008,83797.0,83796.0,0.3053389]
[1742686573965,0.0337,83797.0,83796.0,0.3053389]
[1742686577370,0.0649,83797.0,83796.0,0.3053389]
[1742686580478,0.1842574,83797.0,83796.0,0.3053389]
[1742686582773,0.1842574,83797.0,83796.0,0.0661]
[1742686582981,0.1842574,83797.0,83796.0,0.3037389]
[1742686583172,0.1842574,83797.0,83796.0,0.3045389]
[1742686583769,0.5450574,83797.0,83796.0,0.3045389]
[1742686584273,0.5450574,83797.0,83796.0,0.0028]
[1742686584465,0.66439412,83797.0,83796.0,0.121]
[1742686585066,0.66439412,83797.0,83796.0,0.0094733]
[1742686585269,0.66439412,83797.0,83796.0,0.0733733]
[1742686585470,0.66439412,83797.0,83796.0,0.1935322]
[1742686585990,0.66439412,83797.0,83796.0,0.0655]
[1742686586173,0.66439412,83797.0,83796.0,0.1840589]
[1742686586374,0.66439412,83797.0,83796.0,0.0655]
[1742686586673,0.66439412,83797.0,83796.0,0.1840589]
[1742686586980,0.66439412,83797.0,83796.0,0.1848589]
[1742686587181,0.66439412,83797.0,83796.0,0.0655]
[1742686587378,0.66439412,83797.0,83796.0,0.0647]
[1742686588372,0.66439412,83797.0,83796.0,0.0655]
[1742686588773,0.66439412,83797.0,83796.0,0.1848589]
[1742686589175,0.66439412,83797.0,83796.0,0.0655]
[1742686590488,0.72243276,83797.0,83796.0,0.0655]
[1742686590788,0.1193589,83796.0,83795.0,8e-05]
[1742686590984,0.11995891,83796.0,83795.0,8e-05]
[1742686591172,0.18015891,83796.0,83795.0,0.00088]
[1742686591371,0.18015891,83796.0,83795.0,0.1202403]
[1742686591576,0.29949706,83796.0,83795.0,0.1811403]
[1742686591886,0.29949706,83796.0,83795.0,0.1819403]
[1742686593473,0.29949706,83796.0,83795.0,0.1829403]
[1742686593887,0.29949706,83796.0,83795.0,0.06358]
[1742686594181,0.71355298,83796.0,83795.0,0.06358]
[1742686594369,0.71355298,83796.0,83795.0,0.06278]
[1742686594569,0.71355298,83796.0,83795.0,0.06378]
[1742686594985,0.71355298,83796.0,83795.0,0.06278]
[1742686595570,0.71355298,83796.0,83795.0,0.06178]
[1742686596485,0.71555298,83796.0,83795.0,0.06178]
[1742686597083,0.0596808,83795.0,83792.0,0.02588582]
[1742686597379,0.1200016,83795.0,83794.0,0.1193608]
[1742686597579,0.00064,83795.0,83794.0,0.1193608]
[1742686597773,0.23933845,83795.0,83794.0,0.1193608]
[1742686598079,0.27243845,83795.0,83794.0,0.1193608]
[1742686600278,0.1193617,83794.0,83793.0,0.1819624]
[1742686600478,0.1201617,83794.0,83793.0,0.1827624]
[1742686600787,0.1524617,83794.0,83793.0,0.1827624]
[1742686600981,0.27180127,83794.0,83793.0,0.1827624]
[1742686602689,0.32983991,83794.0,83793.0,0.1827624]
[1742686604283,0.69063991,83794.0,83793.0,0.1827624]
[1742686605188,0.69063991,83794.0,83793.0,0.3089224]
[1742686606688,0.85399692,83794.0,83793.0,0.3089224]
[1742686606992,0.85399692,83794.0,83793.0,0.3087224]
[1742686607691,0.88589692,83794.0,83793.0,0.3087224]
[1742686611490,1.07202632,83794.0,83793.0,0.3087224]
[1742686612905,0.88848675,83794.0,83793.0,0.3087224]
[1742686613897,0.88848675,83794.0,83793.0,0.3080024]
[1742686614106,0.88848675,83794.0,83793.0,0.3079624]
[1742686614993,0.76912505,83794.0,83793.0,0.3079624]
[1742686615598,0.76912505,83794.0,83793.0,0.3099624]
[1742686615795,0.40832505,83794.0,83793.0,0.3099624]
[1742686616004,0.40832505,83794.0,83793.0,0.6707624]
[1742686616594,0.35842505,83794.0,83793.0,0.6707624]
[1742686616794,0.35946506,83794.0,83793.0,0.6707624]
[1742686617494,0.28442824,83798.0,83797.0,0.1193574]
[1742686617698,0.32103849,83803.0,83799.0,0.1193546]
[1742686617902,0.00108,83800.0,83799.0,0.1207146]
[1742686618404,0.00108,83800.0,83799.0,0.1828146]
[1742686619006,0.00017901,83808.0,83802.0,0.1193503]
[1742686619299,0.00017901,83808.0,83807.0,0.1193432]
[1742686619503,0.00017901,83808.0,83807.0,0.1209032]
[1742686619998,0.00017901,83808.0,83807.0,0.1830032]
[1742686620398,0.00217901,83808.0,83807.0,0.1830032]
[1742686620801,0.00417901,83808.0,83807.0,0.1830032]
[1742686621313,0.00517901,83808.0,83807.0,0.1830032]
[1742686622000,0.01713333,83808.0,83807.0,0.1830032]
[1742686622203,0.01713333,83808.0,83807.0,0.3076032]
[1742686622390,0.01813333,83808.0,83807.0,0.3076032]
[1742686622704,0.01813333,83808.0,83807.0,0.31945703]
[1742686623793,0.00617901,83808.0,83807.0,0.31945703]
[1742686624907,0.00617901,83808.0,83807.0,0.31937703]
[1742686626999,0.00617901,83808.0,83807.0,0.00156]
[1742686627000,0.49841177,83808.0,83807.0,0.00156]
[1742686627207,0.1193631,83793.0,83792.0,0.031]
[1742686627505,0.4801631,83793.0,83792.0,0.2759246]
[1742686627713,0.48128311,83793.0,83792.0,0.3087246]
[1742686628199,0.49339082,83793.0,83792.0,0.3087246]
[1742686628599,0.49339082,83793.0,83792.0,0.3097246]
[1742686629113,0.49339082,83793.0,83792.0,0.3107246]
[1742686630404,0.13259082,83793.0,83792.0,0.3107246]
[1742686630605,0.49227081,83793.0,83792.0,0.3107246]
[1742686630811,0.49339082,83793.0,83792.0,0.3107246]
[1742686632308,0.49339082,83793.0,83792.0,0.1863246]
[1742686632510,0.37402772,83793.0,83792.0,0.3102446]
[1742686632901,0.55649082,83793.0,83792.0,0.3102446]
[1742686634910,0.69854295,83793.0,83792.0,0.3102446]
[1742686637618,0.5970812,83756.0,83737.0,0.36405627]
[1742686637913,0.5970812,83756.0,83732.0,0.42814098]
[1742686637914,0.1194487,83733.0,83732.0,0.42814098]
[1742686638216,0.1202087,83733.0,83732.0,0.42890098]
[1742686638414,0.23955112,83733.0,83732.0,0.42890098]
[1742686638714,0.23955112,83733.0,83724.0,0.00017912]
[1742686638715,0.119453,83730.0,83724.0,0.00017912]
[1742686638913,0.1791863,83727.0,83726.0,0.64246528]
[1742686639209,0.1791863,83727.0,83722.0,0.36266432]
[1742686639210,0.1194601,83725.0,83722.0,0.36266432]
[1742686639414,0.1194629,83723.0,83722.0,0.36326432]
[1742686639613,0.1203029,83723.0,83722.0,0.36326432]
[1742686640000,0.23973939,83723.0,83722.0,0.36326432]
[1742686640419,0.38973939,83723.0,83722.0,0.36326432]
[1742686642819,0.23973939,83723.0,83722.0,0.36326432]
[1742686643001,0.12027649,83723.0,83722.0,0.48272872]
[1742686643207,0.11943649,83723.0,83722.0,0.69597276]
[1742686643504,0.3608,83727.0,83726.0,0.1194587]
[1742686643714,0.3616,83727.0,83726.0,0.33358274]
[1742686644410,0.5996994,83727.0,83726.0,0.00088]
[1742686644611,0.6004994,83727.0,83726.0,0.00088]
[1742686644907,0.6014994,83727.0,83726.0,0.00088]
[1742686645311,0.6024994,83727.0,83726.0,0.00088]
[1742686647010,0.6014994,83727.0,83726.0,0.00088]
[1742686647613,0.6014994,83727.0,83726.0,0.1831387]
[1742686647916,0.6014994,83727.0,83726.0,0.27692404]
[1742686648615,0.740758,83727.0,83726.0,0.27692404]
[1742686649318,0.741758,83727.0,83726.0,0.27692404]
[1742686649819,0.740758,83727.0,83726.0,0.27692404]
[1742686650507,0.740758,83727.0,83726.0,0.39638274]
[1742686651514,0.6213008,83727.0,83726.0,0.39638274]
[1742686652512,0.4810422,83727.0,83726.0,0.18127441]
[1742686652816,0.4810422,83727.0,83726.0,0.18187441]
[1742686653319,0.4810422,83727.0,83726.0,0.30823441]
[1742686654614,0.4810422,83727.0,83726.0,0.05728079]
[1742686654818,0.4810422,83727.0,83726.0,0.17733949]
[1742686655024,0.4810422,83727.0,83726.0,0.17833949]
[1742686655620,0.4810422,83727.0,83726.0,0.24243949]
[1742686656525,0.4810422,83727.0,83726.0,0.12608]
[1742686656816,0.4810422,83727.0,83726.0,0.2469787]
[1742686659710,0.4810422,83727.0,83726.0,0.3115787]
[1742686660110,0.4810422,83727.0,83726.0,0.1840587]
[1742686660314,0.4810422,83727.0,83726.0,0.30593417]
[1742686660514,0.3616,83727.0,83726.0,0.30593417]
[1742686661515,0.0008,83727.0,83726.0,0.30593417]
[1742686661716,0.17532326,83732.0,83731.0,0.1791766]
[1742686661919,0.17720327,83732.0,83731.0,1.0794966]
[1742686662819,0.17720327,83732.0,83731.0,0.90025202]
[1742686663015,0.17720327,83732.0,83731.0,1.07942862]
[1742686663531,0.17720327,83732.0,83731.0,1.10982862]
[1742686665222,0.17720327,83732.0,83731.0,1.23526862]
[1742686665416,0.00188001,83732.0,83731.0,1.23626862]
[1742686667826,0.17532326,83736.0,83735.0,0.1194458]
[1742686668030,0.17720327,83736.0,83735.0,0.1194458]
[1742686668331,0.00017912,83741.0,83740.0,0.1194387]
[1742686668547,0.00205913,83741.0,83740.0,0.1194387]
[1742686668734,0.01386783,83741.0,83740.0,0.1194387]
[1742686668929,0.01386783,83741.0,83740.0,0.1520387]
[1742686669124,0.13329149,83741.0,83740.0,0.1520387]
[1742686669430,0.13329975,83741.0,83740.0,0.1847387]
[1742686671634,0.19137531,83741.0,83740.0,0.1847387]
[1742686671836,0.19137531,83741.0,83739.0,0.05901912]
[1742686672138,0.04341696,83740.0,83739.0,0.05901912]
[1742686672325,0.07533697,83740.0,83739.0,0.05901912]
[1742686672829,0.19475421,83740.0,83739.0,0.05901912]
[1742686673031,0.19478296,83740.0,83739.0,0.17845922]
[1742686674436,0.19478296,83740.0,83739.0,0.12452]
[1742686674637,0.19478296,83740.0,83739.0,0.2439601]
[1742686674937,0.19478106,83740.0,83739.0,0.2439601]
[1742686675133,0.19478106,83740.0,83739.0,0.2762601]
[1742686676325,0.45237056,83740.0,83739.0,0.2762601]
[1742686676932,0.45234988,83740.0,83739.0,0.2760201]
[1742686679542,0.42234988,83740.0,83739.0,0.2760201]
[1742686681646,0.45484988,83740.0,83739.0,0.2760201]
[1742686682035,0.45493049,83740.0,83739.0,0.2760201]
[1742686685731,0.45495332,83740.0,83739.0,0.2760201]
[1742686686943,0.45495332,83740.0,83739.0,0.0251002]
[1742686687144,0.45495332,83740.0,83739.0,0.1445403]
[1742686687335,0.45495332,83740.0,83739.0,0.1753403]
[1742686687748,0.45494406,83740.0,83739.0,0.1753403]
[1742686687943,0.44302675,83740.0,83739.0,0.1753403]
[1742686688140,0.45494345,83740.0,83739.0,0.1753403]
[1742686688850,0.42244345,83740.0,83739.0,0.1753403]
[1742686689052,0.30302621,83740.0,83739.0,0.1753403]
[1742686689241,0.29110951,83740.0,83739.0,0.1753403]
[1742686689550,0.29110951,83740.0,83739.0,0.2059403]
[1742686690331,0.29110951,83740.0,83739.0,0.2374403]
[1742686693740,0.29110951,83740.0,83739.0,0.1502401]
[1742686693942,0.41052746,83740.0,83739.0,0.2733201]
[1742686694245,0.44202746,83740.0,83739.0,0.2733201]
[1742686694438,0.45396418,83740.0,83739.0,0.2733201]
[1742686695449,0.45403471,83740.0,83739.0,0.2733201]
[1742686695850,0.45403471,83740.0,83739.0,0.05825371]
[1742686696152,0.45403471,83740.0,83739.0,0.17769381]
[1742686698554,0.45403471,83740.0,83739.0,1.04509381]
[1742686699253,0.45403471,83740.0,83739.0,1.07809381]
[1742686701049,0.81483471,83740.0,83739.0,1.07809381]
[1742686702653,0.81483471,83740.0,83739.0,1.1422401]
[1742686704962,0.81482002,83740.0,83739.0,1.1422401]
[1742686706562,0.81482002,83740.0,83739.0,1.1739401]
[1742686706860,0.81481593,83740.0,83739.0,1.1739401]
[1742686707051,0.86150944,83740.0,83739.0,1.1739401]
[1742686707447,0.50070944,83740.0,83739.0,1.04246298]
[1742686709050,0.46910944,83740.0,83739.0,1.04246298]
[1742686709247,0.7182133,83740.0,83739.0,1.04246298]
[1742686710565,0.7508133,83740.0,83739.0,1.04246298]
[1742686713464,0.7508133,83740.0,83739.0,0.92006298]
[1742686713666,0.29210951,83740.0,83739.0,1.04174298]
[1742686713964,0.2921495,83740.0,83739.0,1.01004298]
[1742686714265,0.3243495,83740.0,83739.0,1.04324298]
[1742686714962,0.2921495,83740.0,83739.0,1.04324298]
[1742686715162,0.2595495,83740.0,83739.0,1.04324298]
[1742686716854,0.2922495,83740.0,83739.0,1.04324298]
[1742686717261,0.03466,83740.0,83739.0,1.04324298]
[1742686717467,0.0327,83740.0,83739.0,1.04324298]
[1742686720362,0.0327,83740.0,83739.0,0.92156298]
[1742686720562,0.0327,83740.0,83739.0,1.04272298]
[1742686721160,0.09077556,83740.0,83739.0,1.04272298]
[1742686723466,0.05807556,83740.0,83739.0,1.04272298]
[1742686724763,0.00017912,83741.0,83740.0,0.1194387]
[1742686724970,0.00017912,83741.0,83740.0,0.1515387]
[1742686725170,0.21361046,83741.0,83740.0,0.2134387]
[1742686727768,0.06370586,83741.0,83740.0,0.2134387]
[1742686727969,6e-08,83741.0,83740.0,0.2134387]
[1742686728580,0.03457836,83741.0,83740.0,0.2134387]
[1742686728775,6e-08,83745.0,83744.0,0.119433]
[1742686729077,6e-08,83745.0,83744.0,0.480233]
[1742686730369,0.00100006,83745.0,83744.0,0.480233]
[1742686731778,0.00200006,83745.0,83744.0,0.480233]
[1742686732776,0.002,83745.0,83744.0,0.480233]
[1742686735275,0.002,83745.0,83744.0,0.600473]
[1742686735575,0.002,83745.0,83744.0,0.663973]
[1742686737876,0.00017912,83749.0,83748.0,0.1194273]
[1742686739179,0.03457912,83749.0,83748.0,0.1194273]
[1742686740174,0.03657912,83749.0,83748.0,0.1194273]
[1742686744179,0.03657912,83749.0,83748.0,0.1840273]
[1742686747972,0.00417912,83749.0,83748.0,0.1840273]
[1742686748682,0.3608,83767.0,83752.0,0.0597101]
[1742686748881,0.3608,83767.0,83758.0,0.119413]
[1742686749682,0.3608,83767.0,83758.0,0.185013]
[1742686749883,0.035,83759.0,83758.0,0.185013]
[1742686750391,0.04,83759.0,83758.0,0.1950928]
[1742686751479,0.037,83759.0,83758.0,0.1950928]
[1742686751678,0.042,83759.0,83758.0,0.1950928]
[1742686752070,0.10005727,83759.0,83758.0,0.1950928]
[1742686752268,0.10193728,83759.0,83758.0,0.1950928]
[1742686752587,0.16363728,83759.0,83758.0,0.1950928]
[1742686755380,0.37704858,83759.0,83758.0,0.1950928]
[1742686756380,0.34504858,83759.0,83758.0,0.1950928]
[1742686756686,0.34504858,83759.0,83758.0,1.0622928]
[1742686756887,0.34316857,83759.0,83758.0,1.0622928]
[1742686758786,0.29474815,83759.0,83758.0,1.0622928]
[1742686759693,0.26384815,83759.0,83758.0,1.0622928]
[1742686761988,0.25884815,83759.0,83758.0,1.0652928]
[1742686762193,0.0358,83759.0,83758.0,1.0652928]
[1742686762687,0.0308,83759.0,83758.0,1.0622928]
[1742686762892,0.0308,83759.0,83758.0,1.0692928]
[1742686765294,0.064,83759.0,83758.0,1.0692928]
[1742686765888,0.12205727,83759.0,83758.0,1.0692928]
[1742686766191,0.08885727,83759.0,83758.0,1.0692928]
[1742686767894,0.031,83766.0,83758.0,1.3106798]
[1742686768096,1e-08,83766.0,83765.0,0.480203]
[1742686768299,0.24910386,83775.0,83767.0,0.1194002]
[1742686768599,0.24910386,83775.0,83767.0,0.1200002]
[1742686769096,0.24910386,83775.0,83767.0,0.1876002]
[1742686769998,0.16625657,83773.0,83767.0,0.1886002]
[1742686770494,0.16625657,83773.0,83767.0,0.1906002]
[1742686771198,0.0331,83772.0,83767.0,0.1906002]
[1742686771401,0.0331,83772.0,83767.0,0.1936002]
[1742686772195,0.0331,83772.0,83767.0,0.1946002]
[1742686773288,0.17778672,83771.0,83767.0,0.1946002]
[1742686773689,0.14002932,83771.0,83770.0,0.1193959]
[1742686773891,0.14002932,83771.0,83770.0,0.1200759]
[1742686774900,0.0327,83775.0,83774.0,0.1193902]
[1742686775086,0.0327,83775.0,83774.0,0.2383502]
[1742686775290,0.00017912,83776.0,83775.0,0.1193888]
[1742686775501,0.00017912,83776.0,83775.0,0.1530888]
[1742686775703,0.00017912,83776.0,83775.0,0.1861888]
[1742686776790,0.00017912,83776.0,83775.0,0.1901888]
[1742686777991,0.00017912,83776.0,83775.0,0.1931888]
[1742686780498,0.0327,83779.0,83778.0,0.1193845]
[1742686780692,0.0327,83779.0,83778.0,0.1199845]
[1742686781802,0.0327,83779.0,83778.0,0.1229845]
[1742686782002,0.03402,83779.0,83778.0,0.2441845]
[1742686782706,0.14055135,83779.0,83778.0,0.2441845]
[1742686783303,0.14055135,83779.0,83778.0,0.2431845]
[1742686783705,0.14055135,83779.0,83778.0,0.25221804]
[1742686784301,0.14055135,83779.0,83778.0,0.25209804]
[1742686784600,0.14055135,83779.0,83778.0,0.24909804]
[1742686784790,0.14055135,83779.0,83778.0,0.25109804]
[1742686784990,0.14055135,83779.0,83778.0,0.25009804]
[1742686785393,0.14055135,83779.0,83778.0,0.28069804]
[1742686785602,0.13923135,83779.0,83778.0,0.28169804]
[1742686786302,0.13923135,83779.0,83778.0,0.27969804]
[1742686786503,0.13923135,83779.0,83778.0,0.28269804]
[1742686786702,0.0327,83779.0,83778.0,0.28269804]
[1742686788402,0.0327,83779.0,83778.0,0.28069804]
[1742686788707,0.0327,83779.0,83778.0,0.28369804]
[1742686789920,0.17479834,83779.0,83778.0,0.28369804]
[1742686791300,0.17479834,83779.0,83778.0,0.31909804]
[1742686793798,0.0327,83779.0,83778.0,0.31909804]
[1742686803815,0.09074079,83779.0,83778.0,0.31909804]
[1742686804115,0.01947599,83779.0,83778.0,0.31909804]
[1742686807404,0.17803785,83781.0,83780.0,0.0596908]
[1742686807605,0.21599785,83781.0,83780.0,0.1796725]
[1742686808700,0.17939785,83781.0,83780.0,0.1826725]
[1742686809215,0.17939785,83781.0,83780.0,0.19493247]
[1742686810011,0.00136,83781.0,83780.0,0.19493247]
[1742686810219,0.0004,83784.0,83783.0,0.1193774]
[1742686810408,0.00172,83784.0,83783.0,0.1199774]
[1742686811211,0.00172,83784.0,83783.0,0.9868974]
[1742686811615,0.00172,83784.0,83783.0,0.9888974]
[1742686812410,0.00172,83784.0,83783.0,0.9908974]
[1742686814714,0.04092,83784.0,83783.0,0.9908974]
[1742686816211,0.07772,83784.0,83783.0,0.9908974]
[1742686817713,0.07772,83784.0,83783.0,1.0295974]
[1742686818816,0.21314751,83785.0,83784.0,0.119376]
[1742686819013,0.00011639,83787.0,83786.0,0.1193731]
[1742686819214,0.00011639,83787.0,83786.0,0.1200531]
[1742686821114,0.00011639,83787.0,83786.0,0.1210531]
[1742686821822,0.00011639,83787.0,83786.0,0.1220531]
[1742686822216,0.00011639,83787.0,83786.0,0.1604531]
[1742686830521,0.04121639,83787.0,83786.0,0.1604531]
[1742686832631,0.04121639,83787.0,83786.0,0.1989531]
[1742686833735,0.27728156,83787.0,83786.0,0.1989531]
[1742686833923,0.27828156,83787.0,83786.0,0.1989531]
[1742686834627,0.23718156,83787.0,83786.0,0.1989531]
[1742686837937,0.00111639,83787.0,83786.0,0.1989531]
[1742686838139,0.00011639,83787.0,83786.0,0.1989531]
[1742686841529,0.04191639,83787.0,83786.0,0.1989531]
[1742686841734,0.0428764,83787.0,83786.0,0.1989531]
[1742686842133,0.04191639,83787.0,83786.0,0.1989531]
[1742686845936,0.04191639,83787.0,83786.0,0.5597531]
[1742686849841,0.27797857,83787.0,83786.0,0.5597531]
[1742686850036,0.27889857,83787.0,83786.0,0.5597531]
[1742686853344,0.27889857,83787.0,83786.0,0.5617531]
[1742686853538,0.27889857,83787.0,83786.0,0.5637531]
[1742686854347,0.27889857,83787.0,83786.0,1.4305931]
[1742686854843,0.04283639,83787.0,83786.0,1.4305931]
[1742686855050,0.04191639,83787.0,83786.0,1.4305931]
[1742686855643,0.08221639,83787.0,83786.0,1.4305931]
[1742686855843,0.08221639,83787.0,83786.0,1.0697931]
[1742686856044,0.08221639,83787.0,83786.0,1.4305931]
[1742686856350,0.08221639,83787.0,83786.0,1.5470331]
[1742686860147,0.04191639,83787.0,83786.0,1.5470331]
[1742686860349,0.00011639,83787.0,83786.0,1.5470331]
[1742686860851,0.0407,83794.0,83793.0,0.1193631]
[1742686861046,0.0417,83794.0,83793.0,0.2364031]
[1742686861247,0.0417,83794.0,83793.0,0.3600031]
[1742686862752,0.0417,83794.0,83793.0,0.3620031]
[1742686863249,0.0417,83794.0,83793.0,0.3640031]
[1742686864051,0.0417,83794.0,83793.0,1.2308431]
[1742686864353,0.0407,83794.0,83793.0,1.2308431]
[1742686864659,0.3608,83811.0,83799.0,0.1193546]
[1742686864950,0.0801,83807.0,83799.0,0.2361946]
[1742686865554,0.0801,83807.0,83799.0,0.3174946]
[1742686867144,0.60990386,83811.0,83799.0,0.3174946]
[1742686867350,0.31125148,83810.0,83799.0,0.3174946]
[1742686867746,0.0404,83809.0,83799.0,0.3174946]
[1742686868457,0.0404,83809.0,83799.0,0.6782946]
[1742686869558,0.14281996,83800.0,83799.0,0.6782946]
[1742686870259,0.14281996,83800.0,83799.0,0.3174946]
[1742686870450,0.14281996,83800.0,83799.0,0.6782946]
[1742686872156,0.14281996,83800.0,83799.0,0.3174946]
[1742686872651,0.14281996,83800.0,83799.0,0.6782946]
[1742686873449,0.10715395,83800.0,83799.0,0.6782946]
[1742686877049,0.0004,83800.0,83799.0,0.6782946]
[1742686877253,0.0004,83800.0,83799.0,0.3174946]
[1742686877461,0.0004,83800.0,83799.0,0.6782946]
[1742686880466,0.0004,83800.0,83799.0,0.3174946]
[1742686880663,0.0004,83800.0,83799.0,0.5620546]
[1742686880871,0.1259,83800.0,83799.0,0.6778546]
[1742686881073,0.12682,83800.0,83799.0,0.6778546]
[1742686882468,0.1259,83800.0,83799.0,0.6778546]
[1742686882870,0.12682,83800.0,83799.0,0.6778546]
[1742686885566,0.1269,83800.0,83799.0,0.6778546]
[1742686888669,0.12682,83800.0,83799.0,0.6778546]
[1742686892175,0.26923996,83800.0,83799.0,0.6778546]
[1742686893076,0.22693996,83800.0,83799.0,0.6778546]
[1742686893281,0.22601996,83800.0,83799.0,0.6778546]
[1742686893466,0.22697997,83800.0,83799.0,0.6778546]
[1742686893679,0.14377997,83800.0,83799.0,0.6778546]
[1742686893878,0.14281996,83800.0,83799.0,0.6778146]
[1742686894178,0.14381996,83800.0,83799.0,0.6778146]
[1742686895775,0.14381996,83800.0,83799.0,0.3170146]
[1742686895976,0.14381996,83800.0,83799.0,0.6778146]
[1742686896765,0.0014,83800.0,83799.0,0.6778146]
[1742686896971,0.00132,83800.0,83799.0,0.6778146]
[1742686899170,0.00132,83800.0,83799.0,0.3170146]
[1742686899370,0.00132,83800.0,83799.0,0.6778146]
[1742686899677,0.00132,83800.0,83799.0,1.5445346]
[1742686899881,0.0004,83800.0,83799.0,1.5445346]
[1742686903877,0.0004,83800.0,83799.0,1.4287746]
[1742686904064,0.0004,83800.0,83799.0,1.5445346]
[1742686915585,0.0004,83800.0,83799.0,1.4287746]
[1742686915781,0.0004,83800.0,83799.0,1.5445346]
[1742686919380,0.0004,83800.0,83799.0,1.1837346]
[1742686919876,0.0004,83800.0,83799.0,1.5445346]
[1742686926782,0.0004,83800.0,83799.0,1.1837346]
[1742686926990,0.0004,83800.0,83799.0,1.5445346]
[1742686927289,0.0004,83800.0,83799.0,2.1379346]
[1742686931587,0.0004,83800.0,83799.0,2.0221746]
[1742686931787,0.0004,83800.0,83799.0,2.1379346]
[1742686938701,0.0004,83800.0,83799.0,1.7771346]
[1742686939195,0.2629508,83800.0,83799.0,1.7771346]
[1742686939788,0.1784508,83800.0,83799.0,1.7771346]
[1742686942492,0.0004,83800.0,83799.0,1.7771346]
[1742686943593,0.0834,83800.0,83799.0,1.7771346]
[1742686946094,0.31947534,83800.0,83799.0,1.7771346]
[1742686947593,0.23647534,83800.0,83799.0,1.7771346]
[1742686951895,0.0004,83800.0,83799.0,1.7771346]
[1742686953605,0.0004,83800.0,83799.0,2.1379346]
[1742686956107,0.0004,83800.0,83799.0,1.7771346]
[1742686956304,0.0004,83800.0,83799.0,2.1379346]
[1742686963108,0.1784508,83800.0,83799.0,2.1379346]
[1742686963413,0.2364752,83800.0,83799.0,2.1379346]
[1742686964511,0.2364752,83800.0,83799.0,1.7771346]
[1742686965610,0.2373952,83800.0,83799.0,1.7771346]
[1742686965811,0.2364752,83800.0,83799.0,1.7771346]
[1742686967016,0.1784508,83800.0,83799.0,1.7771346]
[1742686970016,0.0004,83800.0,83799.0,1.7771346]
[1742686973617,0.0004,83800.0,83799.0,1.8189346]
[1742686974814,0.0848,83800.0,83799.0,1.8189346]
[1742686976019,0.0004,83800.0,83799.0,1.7031746]
[1742686976210,0.0004,83800.0,83799.0,1.8188946]
[1742686978121,0.2364752,83800.0,83799.0,1.8188946]
[1742686982917,0.0004,83800.0,83799.0,1.8188946]
[1742686990331,0.0584243,83800.0,83799.0,1.8188946]
[1742686997331,0.23663737,83800.0,83799.0,1.8188946]
[1742687001236,0.0584243,83800.0,83799.0,1.8188946]
[1742687005429,0.0004,83800.0,83799.0,1.8188946]
[1742687009538,0.0584243,83800.0,83799.0,1.8188946]
[1742687023153,0.0584243,83800.0,83799.0,1.7770946]
[1742687028654,0.0584243,83800.0,83799.0,2.1378946]
[1742687030360,0.0584243,83800.0,83799.0,1.7770946]
[1742687030557,0.0584243,83800.0,83799.0,2.1378946]
[1742687031751,0.0004,83800.0,83799.0,2.1378946]
[1742687034263,0.0004,83800.0,83799.0,1.7770946]
[1742687034562,0.0004,83800.0,83799.0,2.1378946]
[1742687039564,0.0004,83800.0,83799.0,1.7770946]
[1742687039863,0.0004,83800.0,83799.0,2.1378946]
[1742687043670,0.0004,83800.0,83799.0,1.7770946]
[1742687043871,0.0004,83800.0,83799.0,2.1378946]
[1742687044465,0.0004,83800.0,83799.0,1.7770946]
[1742687044661,0.0004,83800.0,83799.0,2.1378946]
[1742687057685,0.0004,83800.0,83799.0,2.1378546]
[1742687060590,0.14296468,83800.0,83799.0,2.1378546]
[1742687065900,0.14296468,83800.0,83799.0,1.7770546]
[1742687066097,0.14296468,83800.0,83799.0,2.1378546]
[1742687067900,0.0004,83800.0,83799.0,2.1378546]
[1742687085313,0.14295619,83800.0,83799.0,2.1378546]
[1742687092614,0.0004,83800.0,83799.0,2.1378546]
[1742687093220,0.0004,83800.0,83799.0,1.7770546]
[1742687093419,0.0004,83800.0,83799.0,2.1378546]
[1742687097219,0.0004,83800.0,83799.0,2.0984146]
[1742687097720,0.0004,83800.0,83799.0,2.1424146]
[1742687098113,0.0837,83800.0,83799.0,2.1424146]
[1742687098722,0.17822742,83804.0,83799.0,2.02306]
[1742687099023,0.059692,83809.0,83808.0,0.1193418]
[1742687099220,0.060692,83809.0,83808.0,0.2355818]
[1742687099823,0.060692,83809.0,83808.0,0.33088516]
[1742687100218,0.001,83809.0,83808.0,0.33088516]
[1742687100519,0.001,83809.0,83808.0,1.19756516]
[1742687100727,0.084,83813.0,83812.0,0.1193361]
[1742687100910,0.08496001,83813.0,83812.0,0.7133761]
[1742687103423,0.09196001,83813.0,83812.0,0.7133761]
[1742687104434,0.14998204,83813.0,83812.0,0.7133761]
[1742687110741,0.14998204,83813.0,83812.0,0.7981761]
[1742687117644,0.16199403,83813.0,83812.0,0.7981761]
[1742687118944,0.16199143,83813.0,83812.0,0.7981761]
[1742687119741,0.14998204,83813.0,83812.0,0.7981761]
[1742687120543,0.14902203,83813.0,83812.0,0.7981761]
[1742687120733,0.16194995,83813.0,83812.0,0.7981761]
[1742687121040,0.16195,83813.0,83812.0,0.7981761]
[1742687122635,0.16195642,83813.0,83812.0,0.7981761]
[1742687124534,0.16192188,83813.0,83812.0,0.7981761]
[1742687125143,0.14994203,83813.0,83812.0,0.7981761]
[1742687125345,0.14902203,83813.0,83812.0,0.7981761]
[1742687125545,0.14998204,83813.0,83812.0,0.7981761]
[1742687126130,0.16196525,83813.0,83812.0,0.7981761]
[1742687126846,0.52276525,83813.0,83812.0,0.7981761]
[1742687127637,0.16196525,83813.0,83812.0,0.7981761]
[1742687127838,0.52180524,83813.0,83812.0,0.7981761]
[1742687128037,0.52276525,83813.0,83812.0,0.7981761]
[1742687128345,0.52277795,83813.0,83812.0,0.7981761]
[1742687129644,0.6537662,83813.0,83812.0,0.7981761]
[1742687130354,0.64177029,83813.0,83812.0,0.7981761]
[1742687131351,0.65374435,83813.0,83812.0,0.7981761]
[1742687131752,0.56974435,83813.0,83812.0,0.7981761]
[1742687132058,0.20894382,83813.0,83812.0,0.7981761]
[1742687133863,0.07795557,83813.0,83812.0,0.7981761]
[1742687134162,0.07792836,83813.0,83812.0,0.7981761]
[1742687134363,0.07792815,83813.0,83812.0,0.7981761]
[1742687136053,0.07797068,83813.0,83812.0,0.7981761]
[1742687136759,0.42678204,83813.0,83812.0,0.7981761]
[1742687137562,0.43877134,83813.0,83812.0,0.7981761]
[1742687137770,0.07797134,83813.0,83812.0,0.7981761]
[1742687138269,0.07797134,83813.0,83812.0,0.80959825]